fUSD/lending_fUSD_20240516
["ID","MTS","AMOUNT","RATE_DAILY","PERIOD"]
[327123516,1715842291468,-500.0,0.00011796,2]
[327123517,1715842291479,-500.0,0.00011796,2]
[327123518,1715842291490,-500.0,0.00011796,2]
[327123519,1715842291500,-500.0,0.00011796,2]
[327123520,1715842291511,-500.0,0.00011796,2]
[327123521,1715842291521,-502.07678014,0.00011796,2]
[327123522,1715842291531,-628.3,0.00011796,2]
[327123523,1715842291542,-628.3,0.00011796,2]
[327123524,1715842291553,-628.3,0.00011796,2]
[327123525,1715842291563,-151.0,0.00011796,2]
[327123526,1715842291574,-151.0,0.00011796,2]
[327123527,1715842291584,-151.0,0.00011796,2]
[327123528,1715842291594,-500.0,0.00011796,2]
[327123529,1715842291605,-571.25,0.00011796,2]
[327123530,1715842291615,-500.0,0.00011796,2]
[327123531,1715842291625,-151.0,0.00011796,2]
[327123532,1715842291635,-500.0,0.00011796,2]
[327123533,1715842291647,-151.0,0.00011796,2]
[327123534,1715842291658,-151.0,0.00011796,2]
[327123535,1715842291670,-151.0,0.00011796,2]
[327123536,1715842291680,-500.0,0.00011796,2]
[327123537,1715842291691,-500.0,0.00011796,2]
[327123538,1715842291701,-186.569006,0.00011796,2]
[327123539,1715842291712,-500.0,0.00011796,2]
[327123540,1715842291723,-500.0,0.00011796,2]
[327123541,1715842291734,-500.0,0.00011796,2]
[327123542,1715842291745,-500.0,0.00011796,2]
[327123543,1715842291756,-500.0,0.00011796,2]
[327123544,1715842291766,-809.72,0.00011796,2]
[327123545,1715842291778,-809.72,0.00011796,2]
[327123546,1715842291790,-809.72,0.00011796,2]
[327123547,1715842291801,-500.0,0.00011796,2]
[327123548,1715842291812,-810.3,0.00011796,2]
[327123549,1715842291822,-500.0,0.00011796,2]
[327123550,1715842291834,-810.3,0.00011796,2]
[327123551,1715842291846,-810.3,0.00011796,2]
[327123552,1715842291858,-500.0,0.00011796,2]
[327123553,1715842291872,-510.01,0.00011796,2]
[327123554,1715842291884,-500.0,0.00011796,2]
[327123555,1715842291895,-500.0,0.00011796,2]
[327123556,1715842291907,-500.0,0.00011796,2]
[327123557,1715842291919,-500.0,0.00011796,2]
[327123558,1715842291930,-500.0,0.00011796,2]
[327123559,1715842291941,-184.23300427,0.00011796,2]
[327123560,1715842291954,-500.0,0.00011796,2]
[327123561,1715842291964,-151.0,0.00011796,2]
[327123562,1715842291975,-500.0,0.00011796,2]
[327123563,1715842291987,-500.0,0.00011796,2]
[327123564,1715842292000,-151.0,0.00011796,2]
[327123565,1715842292010,-500.0,0.00011796,2]
[327123566,1715842292021,-151.0,0.00011796,2]
[327123567,1715842292031,-151.0,0.00011796,2]
[327123568,1715842292042,-500.0,0.00011796,2]
[327123569,1715842292053,-500.0,0.00011796,2]
[327123570,1715842292065,-500.0,0.00011796,2]
[327123571,1715842292077,-151.0,0.00011796,2]
[327123572,1715842292087,-500.0,0.00011796,2]
[327123573,1715842292099,-500.0,0.00011796,2]
[327123574,1715842292110,-608.41,0.00011796,2]
[327123575,1715842292121,-500.0,0.00011796,2]
[327123576,1715842292136,-608.41,0.00011796,2]
[327123577,1715842292147,-608.41,0.00011796,2]
[327123578,1715842292157,-151.595856,0.00011796,2]
[327123579,1715842292169,-500.0,0.00011796,2]
[327123580,1715842292180,-500.0,0.00011796,2]
[327123581,1715842292191,-500.0,0.00011796,2]
[327123582,1715842292201,-945.33,0.00011796,2]
[327123583,1715842292212,-945.33,0.00011796,2]
[327123584,1715842292223,-945.33,0.00011796,2]
[327123585,1715842292234,-500.0,0.00011796,2]
[327123586,1715842292244,-277.88443072,0.00011796,2]
[327123587,1715842292255,-500.0,0.00011796,2]
[327123588,1715842292265,-500.0,0.00011796,2]
[327123589,1715842292275,-500.0,0.00011796,2]
[327123590,1715842292285,-500.0,0.00011796,2]
[327123591,1715842292296,-500.0,0.00011796,2]
[327123592,1715842292307,-500.0,0.00011796,2]
[327123593,1715842292317,-500.0,0.00011796,2]
[327123594,1715842292328,-500.0,0.00011796,2]
[327123595,1715842292338,-500.0,0.00011796,2]
[327123596,1715842292349,-500.0,0.00011796,2]
[327123597,1715842292359,-500.0,0.00011796,2]
[327123598,1715842292371,-504.9754051,0.00011796,2]
[327123599,1715842292381,-500.0,0.00011796,2]
[327123600,1715842292392,-151.0,0.00011796,2]
[327123601,1715842292405,-500.0,0.00011796,2]
[327123602,1715842292416,-206.117606,0.00011796,2]
[327123603,1715842292427,-500.0,0.00011796,2]
[327123604,1715842292439,-500.0,0.00011796,2]
[327123605,1715842292449,-500.0,0.00011796,2]
[327123606,1715842292460,-290.34279673,0.00011796,2]
[327123607,1715842293235,-209.65720327,0.00011796,2]
[327123608,1715842293248,-500.0,0.00011796,2]
[327123609,1715842293260,-500.0,0.00011796,2]
[327123610,1715842293269,-500.0,0.00011796,2]
[327123611,1715842293278,-338.79410504,0.00011796,2]
[327123612,1715842293287,-500.0,0.00011796,2]
[327123613,1715842293297,-500.0,0.00011796,2]
[327123614,1715842293307,-500.0,0.00011796,2]
[327123615,1715842293316,-500.0,0.00011796,2]
[327123616,1715842293325,-500.0,0.00011796,2]
[327123617,1715842293335,-500.0,0.00011796,2]
[327123618,1715842293344,-500.0,0.00011796,2]
[327123619,1715842293354,-500.0,0.00011796,2]
[327123620,1715842293363,-500.0,0.00011796,2]
[327123621,1715842293372,-500.0,0.00011796,2]
[327123622,1715842293383,-500.0,0.00011796,2]
[327123623,1715842293392,-500.0,0.00011796,2]
[327123624,1715842293402,-504.72,0.00011796,2]
[327123625,1715842293411,-504.72,0.00011796,2]
[327123626,1715842293421,-504.72,0.00011796,2]
[327123627,1715842293432,-873.71,0.00011796,2]
[327123628,1715842293443,-514.73,0.00011796,2]
[327123629,1715842293452,-514.73,0.00011796,2]
[327123630,1715842293463,-514.73,0.00011796,2]
[327123631,1715842293473,-564.0841337,0.00011796,2]
[327123632,1715842293482,-500.0,0.00011796,2]
[327123633,1715842293491,-500.0,0.00011796,2]
[327123634,1715842293500,-500.0,0.00011796,2]
[327123635,1715842293509,-234.20455814,0.00011796,2]
[327123636,1715842293522,-265.79544186,0.00011796,2]
[327123637,1715842293531,-501.70262153,0.00011796,2]
[327123638,1715842293541,-518.80354909,0.00011796,2]
[327123639,1715842293550,-266.449622,0.00011796,2]
[327123640,1715842293560,-609.2512675,0.00011796,2]
[327123641,1715842293569,-266.449622,0.00011796,2]
[327123642,1715842293578,-500.0,0.00011796,2]
[327123643,1715842293588,-266.449622,0.00011796,2]
[327123644,1715842293597,-500.0,0.00011796,2]
[327123645,1715842293606,-500.0,0.00011796,2]
[327123646,1715842293615,-500.0,0.00011796,2]
[327123647,1715842293625,-500.0,0.00011796,2]
[327123648,1715842293634,-526.46641274,0.00011796,2]
[327123649,1715842293643,-439.63184127,0.00011796,2]
[327123650,1715842293656,-60.36815873,0.00011796,2]
[327123651,1715842293665,-500.0,0.00011796,2]
[327123652,1715842293674,-266.449622,0.00011796,2]
[327123653,1715842293685,-29.39148351,0.00011796,2]
[327123654,1715842293716,-308.0317082,0.00011767,2]
[327123655,1715842293726,-556.714023,0.00011794,2]
[327123656,1715842293737,-470.60851649,0.00011796,2]
[327123657,1715842293746,-266.449622,0.00011796,2]
[327123658,1715842293755,-500.0,0.00011796,2]
[327123659,1715842293764,-379.96202543,0.00011796,2]
[327123660,1715842293773,-266.449622,0.00011796,2]
[327123661,1715842293783,-266.449622,0.00011796,2]
[327123662,1715842293793,-500.0,0.00011796,2]
[327123663,1715842293803,-500.0,0.00011796,2]
[327123664,1715842293812,-266.449622,0.00011796,2]
[327123665,1715842293821,-500.0,0.00011796,2]
[327123666,1715842293830,-266.449622,0.00011796,2]
[327123667,1715842293839,-505.12175324,0.00011796,2]
[327123668,1715842293848,-500.0,0.00011796,2]
[327123669,1715842293858,-266.449631,0.00011796,2]
[327123670,1715842293867,-297.4107812,0.00011796,2]
[327123671,1715842293882,-202.5892188,0.00011796,2]
[327123672,1715842293892,-500.0,0.00011796,2]
[327123673,1715842293901,-500.0,0.00011796,2]
[327123674,1715842293911,-482.88469478,0.00011796,2]
[327123675,1715842293946,-17.11530522,0.00011796,2]
[327123676,1715842293958,-530.81510511,0.00011796,2]
[327123677,1715842293967,-244.8018325,0.00011796,2]
[327123682,1715842483016,204.24,8.219e-05,2]
[327123685,1715842523504,1000.0,0.00023111,120]
[327123687,1715842540192,1000.0,0.00023111,120]
[327123688,1715842540688,1000.0,0.00023111,120]
[327123689,1715842541111,1000.0,0.00023111,120]
[327123690,1715842541449,1000.0,0.00023111,120]
[327123691,1715842541872,1000.0,0.00023111,120]
[327123692,1715842542357,1000.0,0.00023111,120]
[327123693,1715842552246,841.09044724,0.00023111,120]
[327123695,1715842835223,184.18,8.219e-05,2]
[327123702,1715843046973,2578.83522689,0.0002311,120]
[327123704,1715843056506,55006.07432587,0.0002308,120]
[327123705,1715843056533,239602.92567413,0.0002308,120]
[327123715,1715843235347,194.02,8.219e-05,2]
[327123716,1715843255747,-155.0,9.794e-05,2]
[327123717,1715843255767,-782.3604175,9.795e-05,2]
[327123718,1715843255786,-540.68765903,9.796e-05,2]
[327123719,1715843255805,-155.0,9.796e-05,2]
[327123720,1715843255823,-194.93515879,9.796e-05,2]
[327123721,1715843255842,-176.5003404,9.797e-05,2]
[327123722,1715843255862,-234.15716962,9.797e-05,2]
[327123723,1715843255882,-2221.42869006,9.797e-05,2]
[327123724,1715843255900,-326.61045955,9.797e-05,2]
[327123725,1715843255919,-161.96187779,9.798e-05,2]
[327123726,1715843255938,-3283.4814637,9.798e-05,2]
[327123727,1715843255958,-523.16611257,9.798e-05,2]
[327123728,1715843255976,-2361.52496939,9.798e-05,2]
[327123729,1715843255995,-1999.90774757,9.799e-05,2]
[327123730,1715843256016,-360.0,9.813e-05,2]
[327123731,1715843256298,-250.0,9.834e-05,2]
[327123732,1715843256319,-4873.27793403,9.888e-05,2]
[327123832,1715843431888,-1391.09601204,9.885e-05,2]
[327123835,1715843431901,-1205.19634876,9.886e-05,2]
[327123837,1715843431910,-1205.19634876,9.886e-05,2]
[327123839,1715843431920,-6198.54829044,9.888e-05,2]
[327123841,1715843431931,-1716.36097553,9.888e-05,2]
[327123842,1715843431940,-250.0,9.9e-05,2]
[327123843,1715843431950,-1722.83,9.9e-05,2]
[327123844,1715843431959,-2012.35,9.901e-05,2]
[327123845,1715843431967,-1577.17,9.916e-05,2]
[327123846,1715843431977,-196.94,9.944e-05,2]
[327123847,1715843431986,-250.0,9.983e-05,2]
[327123848,1715843431995,-1000.0,0.0001,2]
[327123849,1715843432004,-789.2922901,0.0001,2]
[327123850,1715843432013,-712.5895165,0.00010013,2]
[327123851,1715843432022,-500.0,0.00010014,2]
[327123852,1715843432031,-158.32,0.00010058,2]
[327123853,1715843432040,-158.32,0.00010106,2]
[327123854,1715843432049,-175.62,0.00010123,2]
[327123855,1715843432058,-499.99,0.00010123,2]
[327123856,1715843432067,-7220.53,0.00010123,2]
[327123857,1715843432076,-640.0,0.00010136,2]
[327123858,1715843432085,-158.32,0.00010154,2]
[327123859,1715843432095,-158.32,0.00010201,2]
[327123860,1715843432104,-158.32,0.00010249,2]
[327123861,1715843432113,-158.32,0.00010296,2]
[327123862,1715843432123,-158.32,0.00010344,2]
[327123863,1715843432131,-158.32,0.00010392,2]
[327123864,1715843432141,-158.32,0.00010439,2]
[327123865,1715843432151,-194.02,0.00010473,2]
[327123866,1715843432160,-158.32,0.00010487,2]
[327123867,1715843432170,-782.3604175,0.00010533,2]
[327123868,1715843432179,-176.5003404,0.00010534,2]
[327123869,1715843432188,-158.32,0.00010535,2]
[327123870,1715843432197,-935.09682412,0.00010581,2]
[327123871,1715843432274,-486.10932198,0.00010581,2]
[327123872,1715843432286,-940.31882329,0.00010581,2]
[327123873,1715843432295,-158.32,0.00010582,2]
[327123874,1715843432306,-150.0,0.00010603,2]
[327123875,1715843432315,-150.0,0.00010603,2]
[327123876,1715843432324,-150.0,0.0001062,2]
[327123877,1715843432333,-150.0,0.00010636,2]
[327123878,1715843432343,-150.0,0.00010653,2]
[327123879,1715843432354,-150.0,0.0001067,2]
[327123880,1715843432363,-150.0,0.00010687,2]
[327123881,1715843432373,-150.0,0.00010704,2]
[327123882,1715843432382,-150.0,0.00010721,2]
[327123883,1715843432392,-150.0,0.00010737,2]
[327123884,1715843432403,-150.0,0.00010754,2]
[327123885,1715843432412,-150.0,0.00010771,2]
[327123886,1715843432421,-150.0,0.00010788,2]
[327123887,1715843432431,-150.0,0.00010805,2]
[327123888,1715843432440,-150.0,0.00010822,2]
[327123891,1715843432450,-150.0,0.00010838,2]
[327123894,1715843432459,-150.0,0.00010855,2]
[327123897,1715843432468,-150.0,0.00010872,2]
[327123899,1715843432478,-150.0,0.00010889,2]
[327123902,1715843432487,-150.0,0.00010906,2]
[327123905,1715843432496,-150.0,0.00010923,2]
[327123908,1715843432506,-150.0,0.00010939,2]
[327123910,1715843432515,-150.0,0.00010956,2]
[327123912,1715843432524,-1486.17761133,0.00010959,3]
[327123961,1715843432985,-791.63952452,0.00010959,3]
[327123962,1715843432996,-446.9,0.00010959,3]
[327123963,1715843433008,-368.36047548,0.00010959,3]
[327123964,1715843433019,-906.92238867,0.00010959,3]
[327123965,1715843433028,-150.0,0.00010959,2]
[327123966,1715843433037,-150.0,0.00010973,2]
[327123967,1715843433047,-150.0,0.0001099,2]
[327123968,1715843433057,-312.94500002,0.00010997,7]
[327123969,1715843433066,-48.8314284,0.00011,2]
[327123970,1715843433077,-503.022718,0.00011,2]
[327123971,1715843433088,-198.74253025,0.00011,2]
[327123972,1715843433098,-150.0,0.00011007,2]
[327123973,1715843433107,-150.0,0.00011023,2]
[327123974,1715843433116,-360.0,0.0001104,2]
[327123975,1715843433125,-150.0,0.0001104,2]
[327123976,1715843433134,-150.0,0.00011057,2]
[327123977,1715843433143,-150.0,0.00011074,2]
[327123978,1715843433154,-150.0,0.00011091,2]
[327123979,1715843433163,-150.0,0.00011108,2]
[327123980,1715843433172,-912.13,0.00011123,2]
[327123981,1715843433181,-150.0,0.00011124,2]
[327123982,1715843433191,-150.0,0.00011141,2]
[327123983,1715843433200,-150.0,0.00011158,2]
[327123984,1715843433210,-150.0,0.00011175,2]
[327123985,1715843433219,-150.0,0.00011192,2]
[327123986,1715843433228,-150.0,0.00011209,2]
[327123987,1715843433237,-150.0,0.00011225,2]
[327123988,1715843433247,-150.0,0.00011242,2]
[327123989,1715843433257,-150.0,0.00011259,2]
[327123990,1715843433270,-150.0,0.00011276,2]
[327123991,1715843433279,-150.0,0.00011293,2]
[327123992,1715843433289,-500.0,0.000113,4]
[327123993,1715843433298,-150.0,0.0001131,2]
[327123994,1715843433307,-150.0,0.00011326,2]
[327123995,1715843433316,-150.0,0.00011343,2]
[327123996,1715843433325,-150.0,0.0001136,2]
[327123997,1715843433336,-150.0,0.00011377,2]
[327123998,1715843433346,-150.0,0.00011394,2]
[327123999,1715843433355,-1100.0,0.000114,4]
[327124000,1715843433364,-640.0,0.00011403,2]
[327124001,1715843433374,-150.0,0.00011411,2]
[327124002,1715843433383,-150.0,0.00011427,2]
[327124003,1715843433392,-150.0,0.00011444,2]
[327124004,1715843433401,-150.0,0.00011461,2]
[327124005,1715843433411,-150.22115179,0.00011474,2]
[327124006,1715843433420,-355.13147955,0.00011475,2]
[327124007,1715843433429,-177.79155009,0.00011475,2]
[327124008,1715843433439,-355.13147955,0.00011476,2]
[327124009,1715843433448,-355.13147955,0.00011477,2]
[327124010,1715843433457,-150.0,0.00011478,2]
[327124011,1715843433466,-176.10875721,0.0001149,2]
[327124012,1715843433475,-163.43562874,0.00011492,2]
[327124013,1715843433484,-150.0,0.00011495,2]
[327124014,1715843433493,-1700.0,0.000115,4]
[327124015,1715843433503,-725.86120845,0.00011511,2]
[327124016,1715843433515,-899.2888717,0.00011511,2]
[327124017,1715843433524,-150.0,0.00011512,2]
[327124018,1715843433534,-150.0,0.00011528,2]
[327124019,1715843433543,-150.0,0.00011545,2]
[327124020,1715843433552,-150.0,0.00011562,2]
[327124021,1715843433561,-187.28,0.00011562,2]
[327124022,1715843433570,-187.28,0.00011562,2]
[327124023,1715843433579,-187.28,0.00011562,2]
[327124024,1715843433588,-195.01809925,0.00011564,2]
[327124025,1715843433598,-187.28,0.00011564,2]
[327124026,1715843433607,-195.01809925,0.00011568,2]
[327124027,1715843433616,-155.39698289,0.00011572,2]
[327124028,1715843433625,-749.68375237,0.00011572,2]
[327124029,1715843433635,-155.21093722,0.00011572,2]
[327124030,1715843433644,-323.15267161,0.00011572,2]
[327124031,1715843433654,-523.68779587,0.00011572,2]
[327124032,1715843433664,-595.42475902,0.00011572,2]
[327124033,1715843433803,-191.67699149,0.00011572,2]
[327124034,1715843433812,-164.08115535,0.00011572,2]
[327124035,1715843433822,-122.09220165,0.00011572,2]
[327124044,1715843438026,-182.24211781,0.00011475,2]
[327124045,1715843438042,-202.80291915,0.00011572,2]
[327124046,1715843438054,-163.14617584,0.00011572,2]
[327124047,1715843438065,-112.8787872,0.00011572,2]
[327124048,1715843438210,-488.1294,0.00011572,2]
[327124049,1715843438225,-652131.11543363,0.00011572,2]
[327124050,1715843438240,-953.23988846,0.00011572,2]
[327124051,1715843438256,-34469.63440839,0.00011572,2]
[327124052,1715843438273,-249.77430605,0.00011573,2]
[327124053,1715843438285,-3393.51864328,0.00011573,2]
[327124054,1715843438297,-716.27,0.00011573,2]
[327124055,1715843438312,-716.27,0.00011573,2]
[327124056,1715843438327,-716.27,0.00011573,2]
[327124057,1715843438340,-500.0,0.00011573,2]
[327124058,1715843438354,-500.0,0.00011573,2]
[327124059,1715843438367,-500.0,0.00011573,2]
[327124060,1715843438381,-500.0,0.00011573,2]
[327124061,1715843438394,-500.0,0.00011573,2]
[327124062,1715843438408,-500.0,0.00011573,2]
[327124063,1715843438420,-500.0,0.00011573,2]
[327124064,1715843438434,-500.0,0.00011573,2]
[327124065,1715843438447,-500.0,0.00011573,2]
[327124066,1715843438459,-678.91,0.00011573,2]
[327124067,1715843438472,-678.91,0.00011573,2]
[327124068,1715843438484,-678.91,0.00011573,2]
[327124069,1715843438497,-500.0,0.00011573,2]
[327124070,1715843438510,-500.0,0.00011573,2]
[327124071,1715843438523,-500.0,0.00011573,2]
[327124072,1715843438535,-500.0,0.00011573,2]
[327124073,1715843438547,-500.0,0.00011573,2]
[327124074,1715843438559,-500.0,0.00011573,2]
[327124075,1715843438571,-2851.58,0.00011573,2]
[327124076,1715843438582,-2851.58,0.00011573,2]
[327124077,1715843438594,-2851.58,0.00011573,2]
[327124078,1715843438605,-954.69,0.00011573,2]
[327124079,1715843438617,-954.69,0.00011573,2]
[327124080,1715843438629,-954.69,0.00011573,2]
[327124081,1715843438641,-1179.35,0.00011573,2]
[327124082,1715843438652,-1179.35,0.00011573,2]
[327124083,1715843438664,-1179.35,0.00011573,2]
[327124084,1715843438676,-715.47,0.00011573,2]
[327124085,1715843438689,-715.47,0.00011573,2]
[327124086,1715843438701,-715.47,0.00011573,2]
[327124087,1715843438715,-1457.79,0.00011573,2]
[327124088,1715843438727,-1457.79,0.00011573,2]
[327124089,1715843438739,-1457.79,0.00011573,2]
[327124090,1715843438750,-500.0,0.00011573,2]
[327124091,1715843438762,-818.36,0.00011573,2]
[327124092,1715843438774,-818.36,0.00011573,2]
[327124093,1715843438786,-818.36,0.00011573,2]
[327124094,1715843438798,-500.0,0.00011573,2]
[327124095,1715843438810,-500.0,0.00011573,2]
[327124096,1715843438822,-606.66,0.00011573,2]
[327124097,1715843438834,-606.66,0.00011573,2]
[327124098,1715843438846,-606.66,0.00011573,2]
[327124099,1715843438858,-927.78,0.00011573,2]
[327124100,1715843438870,-927.78,0.00011573,2]
[327124101,1715843438882,-927.78,0.00011573,2]
[327124102,1715843438894,-500.0,0.00011573,2]
[327124103,1715843438907,-500.0,0.00011573,2]
[327124104,1715843438920,-500.0,0.00011573,2]
[327124105,1715843438932,-500.0,0.00011573,2]
[327124106,1715843438944,-500.0,0.00011573,2]
[327124107,1715843438955,-500.0,0.00011573,2]
[327124108,1715843438968,-1066.54,0.00011573,2]
[327124109,1715843438979,-1066.54,0.00011573,2]
[327124110,1715843438991,-8760.4,0.00011573,2]
[327124111,1715843439003,-1066.54,0.00011573,2]
[327124112,1715843439015,-8760.4,0.00011573,2]
[327124113,1715843439027,-8760.4,0.00011573,2]
[327124114,1715843439039,-500.0,0.00011573,2]
[327124115,1715843439052,-500.0,0.00011573,2]
[327124116,1715843439064,-500.0,0.00011573,2]
[327124117,1715843439076,-500.0,0.00011573,2]
[327124118,1715843439088,-500.0,0.00011573,2]
[327124119,1715843439100,-434.79066321,0.00011573,2]
[327124120,1715843439113,-851.16,0.00011573,2]
[327124121,1715843439125,-851.16,0.00011573,2]
[327124122,1715843439137,-851.16,0.00011573,2]
[327124123,1715843439150,-500.0,0.00011573,2]
[327124124,1715843439162,-500.0,0.00011573,2]
[327124125,1715843439175,-500.0,0.00011573,2]
[327124126,1715843439187,-591.07,0.00011573,2]
[327124127,1715843439200,-634.28,0.00011573,2]
[327124128,1715843439212,-634.28,0.00011573,2]
[327124129,1715843439224,-634.28,0.00011573,2]
[327124130,1715843439236,-500.0,0.00011573,2]
[327124131,1715843439249,-500.0,0.00011573,2]
[327124132,1715843439261,-500.0,0.00011573,2]
[327124133,1715843439277,-500.0,0.00011573,2]
[327124134,1715843439290,-500.0,0.00011573,2]
[327124135,1715843439302,-500.0,0.00011573,2]
[327124136,1715843439315,-500.0,0.00011573,2]
[327124137,1715843439327,-500.0,0.00011573,2]
[327124138,1715843439338,-500.0,0.00011573,2]
[327124139,1715843439354,-546.25631503,0.00011574,2]
[327124140,1715843439366,-500.0,0.00011574,2]
[327124141,1715843439378,-500.0,0.00011574,2]
[327124142,1715843439389,-954.69,0.00011574,2]
[327124143,1715843439402,-715.47,0.00011574,2]
[327124144,1715843439415,-500.0,0.00011574,2]
[327124145,1715843439427,-927.78,0.00011574,2]
[327124146,1715843439439,-500.0,0.00011574,2]
[327124147,1715843439452,-1066.54,0.00011574,2]
[327124148,1715843439464,-500.0,0.00011574,2]
[327124149,1715843439477,-851.16,0.00011574,2]
[327124150,1715843439489,-500.0,0.00011574,2]
[327124151,1715843439501,-500.0,0.00011574,2]
[327124152,1715843439513,-545.62466099,0.00011575,2]
[327124153,1715843439525,-500.0,0.00011575,2]
[327124154,1715843439537,-281.73576216,0.00011575,2]
[327124155,1715843439549,-500.0,0.00011575,2]
[327124156,1715843439561,-500.0,0.00011575,2]
[327124157,1715843439573,-500.0,0.00011575,2]
[327124158,1715843439585,-500.0,0.00011575,2]
[327124159,1715843439597,-500.0,0.00011575,2]
[327124160,1715843439609,-500.0,0.00011575,2]
[327124161,1715843439620,-500.0,0.00011575,2]
[327124162,1715843439632,-493.07578186,0.00011575,2]
[327124163,1715843439644,-500.0,0.00011575,2]
[327124164,1715843439657,-500.0,0.00011575,2]
[327124165,1715843439668,-500.0,0.00011575,2]
[327124166,1715843439681,-500.0,0.00011575,2]
[327124167,1715843439693,-500.0,0.00011575,2]
[327124168,1715843439705,-500.0,0.00011575,2]
[327124169,1715843439718,-643.89,0.00011575,2]
[327124170,1715843439732,-643.89,0.00011575,2]
[327124171,1715843439745,-643.89,0.00011575,2]
[327124172,1715843439757,-500.0,0.00011575,2]
[327124174,1715843439768,-500.0,0.00011575,2]
[327124176,1715843439778,-500.0,0.00011575,2]
[327124178,1715843439788,-565.02308329,0.00011575,2]
[327124179,1715843439798,-500.0,0.00011575,2]
[327124180,1715843439807,-500.0,0.00011575,2]
[327124181,1715843439817,-500.0,0.00011575,2]
[327124182,1715843439827,-500.0,0.00011575,2]
[327124183,1715843439836,-500.0,0.00011575,2]
[327124184,1715843439846,-500.0,0.00011575,2]
[327124185,1715843439855,-500.0,0.00011575,2]
[327124186,1715843439865,-500.0,0.00011575,2]
[327124187,1715843439874,-500.0,0.00011575,2]
[327124188,1715843439884,-500.0,0.00011575,2]
[327124189,1715843439894,-500.0,0.00011575,2]
[327124190,1715843439903,-500.0,0.00011575,2]
[327124191,1715843439913,-500.0,0.00011575,2]
[327124192,1715843439922,-150.0,0.00011575,2]
[327124193,1715843439932,-150.0,0.00011575,2]
[327124194,1715843440345,-150.0,0.00011575,2]
[327124195,1715843440367,-500.0,0.00011575,2]
[327124196,1715843440377,-500.0,0.00011575,2]
[327124197,1715843440387,-500.0,0.00011575,2]
[327124198,1715843440397,-500.0,0.00011575,2]
[327124199,1715843440407,-500.0,0.00011575,2]
[327124200,1715843440417,-500.0,0.00011575,2]
[327124201,1715843440426,-500.0,0.00011575,2]
[327124202,1715843440436,-507.13409937,0.00011575,2]
[327124203,1715843440445,-500.0,0.00011575,2]
[327124204,1715843440454,-500.0,0.00011575,2]
[327124205,1715843440463,-500.0,0.00011575,2]
[327124206,1715843440472,-500.0,0.00011575,2]
[327124207,1715843440482,-500.0,0.00011575,2]
[327124208,1715843440491,-500.0,0.00011575,2]
[327124209,1715843440500,-500.0,0.00011575,2]
[327124210,1715843440509,-500.0,0.00011575,2]
[327124211,1715843440519,-500.0,0.00011575,2]
[327124212,1715843440528,-500.0,0.00011575,2]
[327124213,1715843440538,-494.27577779,0.00011575,2]
[327124214,1715843440548,-175.91914696,0.00011575,2]
[327124215,1715843440557,-553.60626583,0.00011575,2]
[327124216,1715843440567,-884.28,0.00011575,2]
[327124217,1715843440576,-500.0,0.00011575,2]